[Event "Titled Tuesday Blitz August 1 Early 2023"]
[White "Shapiro, Daniel"]
[Black "Smietanska, Wiktoria"]
[WhiteFideId "2001780"]
[BlackFideId "21869359"]
[WhiteElo "2354"]
[BlackElo "2264"]
[Result "1/2-1/2"]
[Round "9"]
[TimeControl "180+1"]
[Date "2023.08.01"]
[WhiteClock "0:00:02"]
[BlackClock "0:00:03"]
[Board "159"]

1. d4 {[%clk 0:02:43]}  Nf6 {[%clk 0:02:59]} 2. c4 {[%clk 0:02:42]}  g6 {[%clk 0:02:59]} 3. Nc3 {[%clk 0:02:39]}  Bg7 {[%clk 0:03:00]} 4. e4 {[%clk 0:02:39]}  d6 {[%clk 0:02:59]} 5. Be2 {[%clk 0:02:40]}  O-O {[%clk 0:02:59]} 6. Nf3 {[%clk 0:02:40]}  e5 {[%clk 0:02:59]} 7. O-O {[%clk 0:02:40]}  Nc6 {[%clk 0:02:59]} 8. d5 {[%clk 0:02:40]}  Ne7 {[%clk 0:03:00]} 9. a4 {[%clk 0:02:41]}  Ne8 {[%clk 0:02:57]} 10. Ne1 {[%clk 0:02:33]}  f5 {[%clk 0:02:56]} 11. f3 {[%clk 0:02:33]}  a5 {[%clk 0:02:55]} 12. Nd3 {[%clk 0:02:32]}  b6 {[%clk 0:02:52]} 13. b3 {[%clk 0:02:32]}  Nf6 {[%clk 0:02:52]} 14. Ba3 {[%clk 0:02:32]}  f4 {[%clk 0:02:49]} 15. b4 {[%clk 0:02:32]}  axb4 {[%clk 0:02:44]} 16. Bxb4 {[%clk 0:02:33]}  g5 {[%clk 0:02:41]} 17. a5 {[%clk 0:02:34]}  bxa5 {[%clk 0:02:40]} 18. Bxa5 {[%clk 0:02:34]}  Ba6 {[%clk 0:02:37]} 19. Nb5 {[%clk 0:02:18]}  Bxb5 {[%clk 0:02:34]} 20. cxb5 {[%clk 0:02:19]}  Qb8 {[%clk 0:02:33]} 21. Be1 {[%clk 0:01:22]}  Rxa1 {[%clk 0:02:21]} 22. Qxa1 {[%clk 0:01:21]}  Qxb5 {[%clk 0:02:21]} 23. Nxf4 {[%clk 0:01:21]}  Qc5+ {[%clk 0:02:10]} 24. Bf2 {[%clk 0:01:20]}  Qc2 {[%clk 0:02:09]} 25. Bd1 {[%clk 0:00:53]}  Qd2 {[%clk 0:02:03]} 26. Ne6 {[%clk 0:00:51]}  Rb8 {[%clk 0:01:41]} 27. Ba4 {[%clk 0:00:36]}  g4 {[%clk 0:01:35]} 28. Qc1 {[%clk 0:00:29]}  Qa2 {[%clk 0:01:29]} 29. Qxc7 {[%clk 0:00:25]}  Rb1 {[%clk 0:01:01]} 30. Qxe7 {[%clk 0:00:17]}  Rxf1+ {[%clk 0:01:00]} 31. Kxf1 {[%clk 0:00:17]}  Qc4+ {[%clk 0:00:58]} 32. Ke1 {[%clk 0:00:14]}  Qb4+ {[%clk 0:00:57]} 33. Ke2 {[%clk 0:00:12]}  Qc4+ {[%clk 0:00:56]} 34. Kd2 {[%clk 0:00:11]}  Bh6+ {[%clk 0:00:54]} 35. f4 {[%clk 0:00:12]}  Nxe4+ {[%clk 0:00:54]} 36. Kd1 {[%clk 0:00:09]}  Nxf2+ {[%clk 0:00:53]} 37. Ke1 {[%clk 0:00:09]}  Nd3+ {[%clk 0:00:47]} 38. Kd2 {[%clk 0:00:09]}  Bxf4+ {[%clk 0:00:22]} 39. Nxf4 {[%clk 0:00:09]}  Qxf4+ {[%clk 0:00:16]} 40. Kxd3 {[%clk 0:00:09]}  Qxa4 {[%clk 0:00:12]} 41. Qxd6 {[%clk 0:00:09]}  Qd4+ {[%clk 0:00:11]} 42. Kc2 {[%clk 0:00:09]}  Qe4+ {[%clk 0:00:11]} 43. Kc3 {[%clk 0:00:09]}  Qe3+ {[%clk 0:00:11]} 44. Kc4 {[%clk 0:00:09]}  Qd4+ {[%clk 0:00:10]} 45. Kb5 {[%clk 0:00:09]}  Qb2+ {[%clk 0:00:08]} 46. Kc6 {[%clk 0:00:09]}  Qc3+ {[%clk 0:00:05]} 47. Kd7 {[%clk 0:00:09]}  Qd4 {[%clk 0:00:02]} 48. Ke8 {[%clk 0:00:07]}  Qf4 {[%clk 0:00:02]} 49. Qe6+ {[%clk 0:00:06]}  Kg7 {[%clk 0:00:02]} 50. d6 {[%clk 0:00:06]}  Qf8+ {[%clk 0:00:02]} 51. Kd7 {[%clk 0:00:06]}  Qb8 {[%clk 0:00:03]} 52. Qe7+ {[%clk 0:00:05]}  Kg6 {[%clk 0:00:03]} 53. Ke6 {[%clk 0:00:05]}  Qb3+ {[%clk 0:00:03]} 54. Kxe5 {[%clk 0:00:04]}  Qe3+ {[%clk 0:00:02]} 55. Kd5 {[%clk 0:00:04]}  Qd3+ {[%clk 0:00:02]} 56. Kc5 {[%clk 0:00:04]}  Qc3+ {[%clk 0:00:03]} 57. Kb6 {[%clk 0:00:05]}  Qb4+ {[%clk 0:00:03]} 58. Kc7 {[%clk 0:00:05]}  Qa5+ {[%clk 0:00:02]} 59. Kd7 {[%clk 0:00:05]}  Qa7+ {[%clk 0:00:02]} 60. Ke8 {[%clk 0:00:04]}  Qb8+ {[%clk 0:00:01]} 61. Qd8 {[%clk 0:00:04]}  Qb5+ {[%clk 0:00:02]} 62. d7 {[%clk 0:00:03]}  Qe5+ {[%clk 0:00:02]} 63. Qe7 {[%clk 0:00:04]}  Qh8+ {[%clk 0:00:02]} 64. Qf8 {[%clk 0:00:03]}  Qe5+ {[%clk 0:00:02]} 65. Kd8 {[%clk 0:00:02]}  Qb8+ {[%clk 0:00:02]} 66. Ke7 {[%clk 0:00:02]}  Qe5+ {[%clk 0:00:03]} 67. Kd8 {[%clk 0:00:01]}  Qb8+ {[%clk 0:00:03]} 68. Ke7 {[%clk 0:00:02]}  Qe5+ {[%clk 0:00:03]} 69. Kd8 {[%clk 0:00:02]} 1/2-1/2


[Site "https://www.chess.com"]

[Event "Titled Tuesday Blitz August 1 Early 2023"]
[White "Mikhaylova, Irina"]
[Black "Jegorovas, Aleksandras"]
[WhiteFideId "4109040"]
[BlackFideId "12801950"]
[WhiteElo "2242"]
[BlackElo "2348"]
[Result "1-0"]
[Round "9"]
[TimeControl "180+1"]
[Date "2023.08.01"]
[WhiteClock "0:00:51"]
[BlackClock "0:01:42"]
[Board "160"]

1. Nf3 {[%clk 0:02:54]}  c6 {[%clk 0:03:00]} 2. c4 {[%clk 0:02:54]}  Nf6 {[%clk 0:02:57]} 3. d4 {[%clk 0:02:54]}  d5 {[%clk 0:02:57]} 4. cxd5 {[%clk 0:02:54]}  cxd5 {[%clk 0:02:57]} 5. Nc3 {[%clk 0:02:55]}  Nc6 {[%clk 0:02:57]} 6. Bf4 {[%clk 0:02:55]}  Ne4 {[%clk 0:02:58]} 7. e3 {[%clk 0:02:54]}  Nxc3 {[%clk 0:02:57]} 8. bxc3 {[%clk 0:02:54]}  g6 {[%clk 0:02:58]} 9. Bd3 {[%clk 0:02:54]}  Bg7 {[%clk 0:02:58]} 10. O-O {[%clk 0:02:54]}  O-O {[%clk 0:02:59]} 11. c4 {[%clk 0:02:52]}  dxc4 {[%clk 0:02:57]} 12. Bxc4 {[%clk 0:02:52]}  Bg4 {[%clk 0:02:58]} 13. h3 {[%clk 0:02:52]}  Bxf3 {[%clk 0:02:58]} 14. Qxf3 {[%clk 0:02:52]}  e5 {[%clk 0:02:58]} 15. dxe5 {[%clk 0:02:52]}  Nxe5 {[%clk 0:02:59]} 16. Bxe5 {[%clk 0:02:45]}  Bxe5 {[%clk 0:02:59]} 17. Rad1 {[%clk 0:02:41]}  Qe7 {[%clk 0:02:59]} 18. Rd5 {[%clk 0:02:37]}  Rad8 {[%clk 0:02:58]} 19. Rfd1 {[%clk 0:02:37]}  Rxd5 {[%clk 0:02:58]} 20. Rxd5 {[%clk 0:02:37]}  b6 {[%clk 0:02:57]} 21. g3 {[%clk 0:02:12]}  Kg7 {[%clk 0:02:51]} 22. Kg2 {[%clk 0:02:12]}  h5 {[%clk 0:02:51]} 23. Qe4 {[%clk 0:01:46]}  Re8 {[%clk 0:02:42]} 24. Bb5 {[%clk 0:01:38]}  Bf6 {[%clk 0:02:25]} 25. Qxe7 {[%clk 0:01:25]}  Rxe7 {[%clk 0:02:25]} 26. Rd7 {[%clk 0:01:25]}  Rxd7 {[%clk 0:02:25]} 27. Bxd7 {[%clk 0:01:25]}  Bb2 {[%clk 0:02:24]} 28. f4 {[%clk 0:01:24]}  Kf6 {[%clk 0:02:24]} 29. e4 {[%clk 0:01:23]}  Ke7 {[%clk 0:02:23]} 30. Bb5 {[%clk 0:01:21]}  f6 {[%clk 0:02:22]} 31. Kf3 {[%clk 0:01:19]}  g5 {[%clk 0:02:20]} 32. Be2 {[%clk 0:01:12]}  a5 {[%clk 0:02:17]} 33. a4 {[%clk 0:01:10]}  Bc1 {[%clk 0:02:17]} 34. Bb5 {[%clk 0:01:09]}  Kd6 {[%clk 0:02:15]} 35. Be8 {[%clk 0:01:09]}  h4 {[%clk 0:02:16]} 36. gxh4 {[%clk 0:01:07]}  gxh4 {[%clk 0:02:16]} 37. Kg4 {[%clk 0:01:04]}  Kc5 {[%clk 0:02:16]} 38. Kf5 {[%clk 0:01:03]}  Be3 {[%clk 0:02:11]} 39. Kxf6 {[%clk 0:00:54]}  Bxf4 {[%clk 0:02:10]} 40. e5 {[%clk 0:00:54]}  b5 {[%clk 0:01:47]} 41. Bxb5 {[%clk 0:00:52]}  Kb6 {[%clk 0:01:42]} 42. e6 {[%clk 0:00:51]} 1-0


[Site "https://www.chess.com"]

[Event "Titled Tuesday Blitz August 1 Early 2023"]
[White "Acikel, Mert"]
[Black "Skiadopoulos, Nikolaos"]
[WhiteFideId "12956465"]
[BlackFideId "4200772"]
[WhiteElo "2316"]
[BlackElo "1860"]
[Result "1-0"]
[Round "9"]
[TimeControl "180+1"]
[Date "2023.08.01"]
[WhiteClock "0:01:47"]
[BlackClock "0:00:51"]
[Board "161"]

1. e4 {[%clk 0:02:58]}  c5 {[%clk 0:02:57]} 2. Nf3 {[%clk 0:02:55]}  Nc6 {[%clk 0:02:57]} 3. Bb5 {[%clk 0:02:55]}  Na5 {[%clk 0:02:56]} 4. O-O {[%clk 0:02:53]}  a6 {[%clk 0:02:56]} 5. Be2 {[%clk 0:02:54]}  b5 {[%clk 0:02:56]} 6. d4 {[%clk 0:02:51]}  cxd4 {[%clk 0:02:56]} 7. Nxd4 {[%clk 0:02:52]}  e5 {[%clk 0:02:56]} 8. Nf5 {[%clk 0:02:51]}  d5 {[%clk 0:02:55]} 9. Ng3 {[%clk 0:02:36]}  d4 {[%clk 0:02:48]} 10. a4 {[%clk 0:02:33]}  b4 {[%clk 0:02:45]} 11. c3 {[%clk 0:02:29]}  bxc3 {[%clk 0:02:45]} 12. bxc3 {[%clk 0:02:29]}  Nc6 {[%clk 0:02:39]} 13. Ba3 {[%clk 0:02:26]}  Bxa3 {[%clk 0:02:35]} 14. Nxa3 {[%clk 0:02:26]}  Nf6 {[%clk 0:02:35]} 15. cxd4 {[%clk 0:02:25]}  Nxd4 {[%clk 0:02:34]} 16. Nc4 {[%clk 0:02:24]}  O-O {[%clk 0:01:49]} 17. Nxe5 {[%clk 0:02:19]}  Nxe2+ {[%clk 0:01:46]} 18. Qxe2 {[%clk 0:02:16]}  Qe7 {[%clk 0:01:46]} 19. Nc6 {[%clk 0:02:10]}  Qc7 {[%clk 0:01:29]} 20. Rac1 {[%clk 0:02:08]}  a5 {[%clk 0:01:29]} 21. e5 {[%clk 0:02:04]}  Ng4 {[%clk 0:01:14]} 22. Qe4 {[%clk 0:01:54]}  Ba6 {[%clk 0:01:07]} 23. Qxg4 {[%clk 0:01:51]}  Bxf1 {[%clk 0:00:51]} 24. Nf5 {[%clk 0:01:47]} 1-0


[Site "https://www.chess.com"]

[Event "Titled Tuesday Blitz August 1 Early 2023"]
[White "Howell, David W L"]
[Black "sterpfi"]
[WhiteFideId "410608"]
[WhiteElo "3025"]
[BlackElo "2200"]
[Result "1-0"]
[Round "9"]
[TimeControl "180+1"]
[Date "2023.08.01"]
[WhiteClock "0:01:38"]
[BlackClock "0:01:03"]
[Board "162"]

1. e3 {[%clk 0:02:54]}  d5 {[%clk 0:02:46]} 2. c4 {[%clk 0:02:43]}  e6 {[%clk 0:02:39]} 3. Nc3 {[%clk 0:02:42]}  Nf6 {[%clk 0:02:39]} 4. b3 {[%clk 0:02:31]}  Nbd7 {[%clk 0:02:26]} 5. Bb2 {[%clk 0:02:30]}  b6 {[%clk 0:02:26]} 6. Rc1 {[%clk 0:02:24]}  Bb7 {[%clk 0:02:25]} 7. Nf3 {[%clk 0:02:25]}  Bd6 {[%clk 0:02:24]} 8. cxd5 {[%clk 0:02:19]}  exd5 {[%clk 0:02:21]} 9. Nb5 {[%clk 0:02:19]}  Nc5 {[%clk 0:02:03]} 10. Nxd6+ {[%clk 0:02:06]}  Qxd6 {[%clk 0:02:04]} 11. Be5 {[%clk 0:02:06]}  Qd8 {[%clk 0:01:57]} 12. d4 {[%clk 0:01:51]}  Ncd7 {[%clk 0:01:51]} 13. Bxc7 {[%clk 0:01:49]}  Qe7 {[%clk 0:01:48]} 14. Bd3 {[%clk 0:01:48]}  O-O {[%clk 0:01:41]} 15. O-O {[%clk 0:01:48]}  Ne4 {[%clk 0:01:32]} 16. Bg3 {[%clk 0:01:42]}  f5 {[%clk 0:01:31]} 17. Rc7 {[%clk 0:01:41]}  Rab8 {[%clk 0:01:24]} 18. Ne5 {[%clk 0:01:39]}  Rfd8 {[%clk 0:01:14]} 19. Bxe4 {[%clk 0:01:38]}  fxe4 {[%clk 0:01:12]} 20. Nxd7 {[%clk 0:01:38]}  Rxd7 {[%clk 0:01:06]} 21. Rxd7 {[%clk 0:01:37]}  Qxd7 {[%clk 0:01:03]} 22. Bxb8 {[%clk 0:01:38]} 1-0


[Site "https://www.chess.com"]

[Event "Titled Tuesday Blitz August 1 Early 2023"]
[White "hsd2016"]
[Black "Krzywda, Andrzej"]
[BlackFideId "1114565"]
[WhiteElo "2224"]
[BlackElo "2374"]
[Result "1-0"]
[Round "9"]
[TimeControl "180+1"]
[Date "2023.08.01"]
[WhiteClock "0:00:04"]
[BlackClock "0:00:00"]
[Board "165"]

1. c4 {[%clk 0:03:00]}  e6 {[%clk 0:02:59]} 2. Nc3 {[%clk 0:03:01]}  d5 {[%clk 0:02:59]} 3. cxd5 {[%clk 0:03:01]}  exd5 {[%clk 0:02:59]} 4. d4 {[%clk 0:03:02]}  Nf6 {[%clk 0:02:58]} 5. Nf3 {[%clk 0:03:03]}  c6 {[%clk 0:02:56]} 6. Bf4 {[%clk 0:03:02]}  Be7 {[%clk 0:02:42]} 7. e3 {[%clk 0:03:00]}  O-O {[%clk 0:02:42]} 8. h3 {[%clk 0:03:00]}  Re8 {[%clk 0:02:43]} 9. Bd3 {[%clk 0:03:00]}  g6 {[%clk 0:02:38]} 10. O-O {[%clk 0:03:00]}  Nh5 {[%clk 0:02:38]} 11. Bh2 {[%clk 0:02:59]}  Ng7 {[%clk 0:02:38]} 12. a3 {[%clk 0:02:52]}  Bf5 {[%clk 0:02:38]} 13. b4 {[%clk 0:02:51]}  Bxd3 {[%clk 0:02:36]} 14. Qxd3 {[%clk 0:02:52]}  a6 {[%clk 0:02:15]} 15. Rab1 {[%clk 0:02:50]}  Nd7 {[%clk 0:02:14]} 16. Na4 {[%clk 0:02:38]}  b5 {[%clk 0:02:08]} 17. Nc5 {[%clk 0:02:37]}  Nb6 {[%clk 0:02:08]} 18. Ne5 {[%clk 0:02:36]}  Qc8 {[%clk 0:01:59]} 19. Rfc1 {[%clk 0:02:30]}  Nc4 {[%clk 0:01:59]} 20. a4 {[%clk 0:02:11]}  Bxc5 {[%clk 0:01:59]} 21. bxc5 {[%clk 0:02:09]}  Nf5 {[%clk 0:01:46]} 22. axb5 {[%clk 0:02:05]}  axb5 {[%clk 0:01:46]} 23. Ra1 {[%clk 0:01:54]}  f6 {[%clk 0:01:43]} 24. Nxc4 {[%clk 0:01:52]}  dxc4 {[%clk 0:01:39]} 25. Qc3 {[%clk 0:01:52]}  Qe6 {[%clk 0:01:36]} 26. Bc7 {[%clk 0:00:56]}  Qd5 {[%clk 0:01:24]} 27. Rxa8 {[%clk 0:00:50]}  Rxa8 {[%clk 0:01:23]} 28. f3 {[%clk 0:00:50]}  Ra2 {[%clk 0:01:14]} 29. Re1 {[%clk 0:00:08]}  Nh4 {[%clk 0:01:10]} 30. e4 {[%clk 0:00:07]}  Qg5 {[%clk 0:01:05]} 31. g4 {[%clk 0:00:05]}  Qd2 {[%clk 0:00:31]} 32. Qxd2 {[%clk 0:00:06]}  Rxd2 {[%clk 0:00:31]} 33. Rf1 {[%clk 0:00:05]}  c3 {[%clk 0:00:31]} 34. Ba5 {[%clk 0:00:04]}  Rd3 {[%clk 0:00:29]} 35. d5 {[%clk 0:00:03]}  cxd5 {[%clk 0:00:29]} 36. exd5 {[%clk 0:00:03]}  Rxd5 {[%clk 0:00:26]} 37. Bxc3 {[%clk 0:00:04]}  Rxc5 {[%clk 0:00:25]} 38. Bxf6 {[%clk 0:00:04]}  g5 {[%clk 0:00:25]} 39. f4 {[%clk 0:00:03]}  Ng6 {[%clk 0:00:22]} 40. Bxg5 {[%clk 0:00:02]}  b4 {[%clk 0:00:19]} 41. f5 {[%clk 0:00:03]}  Ne5 {[%clk 0:00:17]} 42. Be7 {[%clk 0:00:03]}  Rc2 {[%clk 0:00:17]} 43. Bxb4 {[%clk 0:00:04]}  Kf7 {[%clk 0:00:17]} 44. Bd6 {[%clk 0:00:02]}  Nc4 {[%clk 0:00:17]} 45. Bg3 {[%clk 0:00:02]}  Ne3 {[%clk 0:00:16]} 46. Rf2 {[%clk 0:00:03]}  Rc1+ {[%clk 0:00:15]} 47. Kh2 {[%clk 0:00:03]}  Nf1+ {[%clk 0:00:15]} 48. Kg2 {[%clk 0:00:04]}  Ne3+ {[%clk 0:00:15]} 49. Kf3 {[%clk 0:00:04]}  Nc4 {[%clk 0:00:15]} 50. Bf4 {[%clk 0:00:05]}  Rc3+ {[%clk 0:00:15]} 51. Kg2 {[%clk 0:00:05]}  Rb3 {[%clk 0:00:13]} 52. Re2 {[%clk 0:00:06]}  Nb2 {[%clk 0:00:11]} 53. g5 {[%clk 0:00:06]}  Nd3 {[%clk 0:00:12]} 54. Bd2 {[%clk 0:00:06]}  Rb2 {[%clk 0:00:10]} 55. Kf3 {[%clk 0:00:05]}  Rb3 {[%clk 0:00:08]} 56. Ke4 {[%clk 0:00:05]}  Nc5+ {[%clk 0:00:06]} 57. Kd5 {[%clk 0:00:06]}  Nd7 {[%clk 0:00:04]} 58. h4 {[%clk 0:00:06]}  Rd3+ {[%clk 0:00:04]} 59. Kc6 {[%clk 0:00:05]}  Nf8 {[%clk 0:00:04]} 60. f6 {[%clk 0:00:05]}  Rh3 {[%clk 0:00:03]} 61. Re7+ {[%clk 0:00:05]}  Kg8 {[%clk 0:00:03]} 62. Rg7+ {[%clk 0:00:05]}  Kh8 {[%clk 0:00:00]} 63. Bb4 {[%clk 0:00:04]} 1-0


[Site "https://www.chess.com"]

[Event "Titled Tuesday Blitz August 1 Early 2023"]
[White "Lopez Gracia, Fernando"]
[Black "Arcos Facio, Mateo"]
[WhiteFideId "2207184"]
[BlackFideId "3001199"]
[WhiteElo "2340"]
[BlackElo "2206"]
[Result "1-0"]
[Round "9"]
[TimeControl "180+1"]
[Date "2023.08.01"]
[WhiteClock "0:00:44"]
[BlackClock "0:00:00"]
[Board "166"]

1. e4 {[%clk 0:02:51]}  e5 {[%clk 0:02:59]} 2. Nf3 {[%clk 0:02:51]}  Nc6 {[%clk 0:03:00]} 3. d4 {[%clk 0:02:50]}  exd4 {[%clk 0:02:59]} 4. Nxd4 {[%clk 0:02:51]}  Bc5 {[%clk 0:02:59]} 5. Be3 {[%clk 0:02:41]}  Qf6 {[%clk 0:02:59]} 6. c3 {[%clk 0:02:30]}  Qg6 {[%clk 0:02:58]} 7. Nd2 {[%clk 0:02:27]}  Nge7 {[%clk 0:02:57]} 8. g3 {[%clk 0:02:23]}  Ne5 {[%clk 0:02:55]} 9. f4 {[%clk 0:02:15]}  Ng4 {[%clk 0:02:51]} 10. Bg1 {[%clk 0:02:13]}  h5 {[%clk 0:02:40]} 11. h3 {[%clk 0:02:10]}  Nh6 {[%clk 0:02:36]} 12. Bf2 {[%clk 0:02:08]}  d5 {[%clk 0:02:29]} 13. Bg2 {[%clk 0:02:02]}  dxe4 {[%clk 0:02:19]} 14. Nxe4 {[%clk 0:02:03]}  Bb6 {[%clk 0:02:15]} 15. O-O {[%clk 0:02:00]}  O-O {[%clk 0:02:04]} 16. Kh2 {[%clk 0:01:45]}  h4 {[%clk 0:01:41]} 17. g4 {[%clk 0:01:41]}  Bxg4 {[%clk 0:01:37]} 18. hxg4 {[%clk 0:01:36]}  Nxg4+ {[%clk 0:01:37]} 19. Kh3 {[%clk 0:01:34]}  Nxf2+ {[%clk 0:01:06]} 20. Rxf2 {[%clk 0:01:35]}  Bxd4 {[%clk 0:00:58]} 21. cxd4 {[%clk 0:01:28]}  Rad8 {[%clk 0:00:47]} 22. Qg4 {[%clk 0:01:25]}  Qxg4+ {[%clk 0:00:47]} 23. Kxg4 {[%clk 0:01:26]}  f5+ {[%clk 0:00:47]} 24. Kf3 {[%clk 0:01:23]}  fxe4+ {[%clk 0:00:44]} 25. Kxe4 {[%clk 0:01:24]}  Nf5 {[%clk 0:00:40]} 26. Rd1 {[%clk 0:01:14]}  g6 {[%clk 0:00:40]} 27. Bh3 {[%clk 0:01:09]}  Rfe8+ {[%clk 0:00:35]} 28. Kf3 {[%clk 0:01:07]}  Rxd4 {[%clk 0:00:26]} 29. Rxd4 {[%clk 0:01:06]}  Nxd4+ {[%clk 0:00:27]} 30. Kg4 {[%clk 0:01:07]}  Nf5 {[%clk 0:00:21]} 31. Kg5 {[%clk 0:01:07]}  Kf7 {[%clk 0:00:13]} 32. Rd2 {[%clk 0:01:00]}  Re7 {[%clk 0:00:10]} 33. Bxf5 {[%clk 0:00:58]}  gxf5 {[%clk 0:00:09]} 34. Kxf5 {[%clk 0:00:59]}  h3 {[%clk 0:00:09]} 35. Rh2 {[%clk 0:00:58]}  Re3 {[%clk 0:00:09]} 36. Kg4 {[%clk 0:00:56]}  Kf6 {[%clk 0:00:05]} 37. Rxh3 {[%clk 0:00:57]}  Rxh3 {[%clk 0:00:05]} 38. Kxh3 {[%clk 0:00:58]}  Kf5 {[%clk 0:00:06]} 39. Kg3 {[%clk 0:00:58]}  c5 {[%clk 0:00:06]} 40. a4 {[%clk 0:00:56]}  b6 {[%clk 0:00:04]} 41. Kf3 {[%clk 0:00:56]}  a6 {[%clk 0:00:04]} 42. Ke3 {[%clk 0:00:55]}  b5 {[%clk 0:00:04]} 43. a5 {[%clk 0:00:54]}  c4 {[%clk 0:00:02]} 44. Kf3 {[%clk 0:00:43]}  b4 {[%clk 0:00:02]} 45. Ke3 {[%clk 0:00:43]}  c3 {[%clk 0:00:01]} 46. bxc3 {[%clk 0:00:44]}  bxc3 {[%clk 0:00:00]} 47. Kd3 {[%clk 0:00:44]} 1-0


[Site "https://www.chess.com"]

[Event "Titled Tuesday Blitz August 1 Early 2023"]
[White "Hrescak, Ivana"]
[Black "Elissalt Cardenas, Hector"]
[WhiteFideId "14613441"]
[BlackFideId "3500632"]
[WhiteElo "2208"]
[BlackElo "2323"]
[Result "0-1"]
[Round "9"]
[TimeControl "180+1"]
[Date "2023.08.01"]
[WhiteClock "0:00:00"]
[BlackClock "0:00:27"]
[Board "167"]

1. e4 {[%clk 0:03:00]}  d6 {[%clk 0:02:55]} 2. d4 {[%clk 0:03:00]}  Nf6 {[%clk 0:02:54]} 3. Nc3 {[%clk 0:03:00]}  e5 {[%clk 0:02:53]} 4. Nf3 {[%clk 0:02:59]}  Nbd7 {[%clk 0:02:47]} 5. Rg1 {[%clk 0:02:59]}  h5 {[%clk 0:02:39]} 6. h3 {[%clk 0:02:56]}  Be7 {[%clk 0:02:33]} 7. g4 {[%clk 0:02:52]}  hxg4 {[%clk 0:02:31]} 8. hxg4 {[%clk 0:02:52]}  g6 {[%clk 0:02:32]} 9. g5 {[%clk 0:02:47]}  Nh5 {[%clk 0:02:31]} 10. Be3 {[%clk 0:02:45]}  c6 {[%clk 0:02:31]} 11. Qd2 {[%clk 0:02:42]}  Qc7 {[%clk 0:02:31]} 12. O-O-O {[%clk 0:02:40]}  a5 {[%clk 0:02:04]} 13. a4 {[%clk 0:01:46]}  Rh7 {[%clk 0:01:31]} 14. Bc4 {[%clk 0:01:45]}  Nf8 {[%clk 0:01:20]} 15. Ba2 {[%clk 0:01:29]}  Ne6 {[%clk 0:01:17]} 16. d5 {[%clk 0:01:25]}  Nef4 {[%clk 0:01:13]} 17. dxc6 {[%clk 0:01:17]}  bxc6 {[%clk 0:01:12]} 18. Ne2 {[%clk 0:01:05]}  Nxe2+ {[%clk 0:00:54]} 19. Qxe2 {[%clk 0:01:04]}  Rb8 {[%clk 0:00:49]} 20. Bb3 {[%clk 0:00:41]}  Qb7 {[%clk 0:00:46]} 21. Bd2 {[%clk 0:00:38]}  Be6 {[%clk 0:00:43]} 22. Qd3 {[%clk 0:00:25]}  Bxb3 {[%clk 0:00:42]} 23. cxb3 {[%clk 0:00:25]}  Qxb3 {[%clk 0:00:42]} 24. Qxb3 {[%clk 0:00:20]}  Rxb3 {[%clk 0:00:42]} 25. Ne1 {[%clk 0:00:13]}  Nf4 {[%clk 0:00:38]} 26. Bxa5 {[%clk 0:00:12]}  Ne2+ {[%clk 0:00:37]} 27. Kc2 {[%clk 0:00:09]}  Rhh3 {[%clk 0:00:31]} 28. Rf1 {[%clk 0:00:05]}  Nd4+ {[%clk 0:00:28]} 29. Kb1 {[%clk 0:00:00]}  Bxg5 {[%clk 0:00:27]} 0-1


[Site "https://www.chess.com"]

[Event "Titled Tuesday Blitz August 1 Early 2023"]
[White "Alimpic, Aleksa"]
[Black "le-castor-faineant"]
[WhiteFideId "974323"]
[WhiteElo "2309"]
[BlackElo "2190"]
[Result "1-0"]
[Round "9"]
[TimeControl "180+1"]
[Date "2023.08.01"]
[WhiteClock "0:01:05"]
[BlackClock "0:00:06"]
[Board "169"]

1. d4 {[%clk 0:02:57]}  Nf6 {[%clk 0:02:59]} 2. Nf3 {[%clk 0:02:56]}  c5 {[%clk 0:02:59]} 3. c3 {[%clk 0:02:55]}  cxd4 {[%clk 0:02:59]} 4. cxd4 {[%clk 0:02:54]}  d5 {[%clk 0:02:59]} 5. Nc3 {[%clk 0:02:55]}  Nc6 {[%clk 0:02:59]} 6. Bf4 {[%clk 0:02:54]}  e6 {[%clk 0:02:53]} 7. e3 {[%clk 0:02:51]}  Bd6 {[%clk 0:02:53]} 8. Bxd6 {[%clk 0:02:51]}  Qxd6 {[%clk 0:02:52]} 9. Bd3 {[%clk 0:02:52]}  O-O {[%clk 0:02:53]} 10. O-O {[%clk 0:02:52]}  e5 {[%clk 0:02:53]} 11. dxe5 {[%clk 0:02:52]}  Nxe5 {[%clk 0:02:54]} 12. Nxe5 {[%clk 0:02:50]}  Qxe5 {[%clk 0:02:55]} 13. Be2 {[%clk 0:02:43]}  Rd8 {[%clk 0:02:48]} 14. Nb5 {[%clk 0:02:42]}  Bf5 {[%clk 0:02:45]} 15. Rc1 {[%clk 0:02:38]}  a6 {[%clk 0:02:39]} 16. Qd4 {[%clk 0:02:35]}  Qe7 {[%clk 0:01:47]} 17. Nc3 {[%clk 0:02:26]}  Be4 {[%clk 0:01:19]} 18. h3 {[%clk 0:01:48]}  Rac8 {[%clk 0:01:10]} 19. Na4 {[%clk 0:01:42]}  Rxc1 {[%clk 0:00:30]} 20. Rxc1 {[%clk 0:01:41]}  b5 {[%clk 0:00:31]} 21. Nc5 {[%clk 0:01:36]}  Rc8 {[%clk 0:00:26]} 22. b4 {[%clk 0:01:35]}  Nd7 {[%clk 0:00:24]} 23. Nb3 {[%clk 0:01:30]}  Rxc1+ {[%clk 0:00:23]} 24. Nxc1 {[%clk 0:01:31]}  Ne5 {[%clk 0:00:18]} 25. f3 {[%clk 0:01:19]}  Nc6 {[%clk 0:00:07]} 26. Qb6 {[%clk 0:01:07]}  Bxf3 {[%clk 0:00:07]} 27. Bxf3 {[%clk 0:01:05]}  Qxe3+ {[%clk 0:00:06]} 28. Qxe3 {[%clk 0:01:05]} 1-0


[Site "https://www.chess.com"]

[Event "Titled Tuesday Blitz August 1 Early 2023"]
[White "Georg, Heinz"]
[Black "BeautiFullMindChess"]
[WhiteFideId "4607295"]
[WhiteElo "2295"]
[BlackElo "2171"]
[Result "0-1"]
[Round "9"]
[TimeControl "180+1"]
[Date "2023.08.01"]
[WhiteClock "0:00:03"]
[BlackClock "0:01:32"]
[Board "171"]

1. e4 {[%clk 0:02:12]}  c5 {[%clk 0:02:58]} 2. Nf3 {[%clk 0:02:12]}  d6 {[%clk 0:02:59]} 3. Bb5+ {[%clk 0:02:11]}  Bd7 {[%clk 0:02:55]} 4. Bxd7+ {[%clk 0:02:11]}  Qxd7 {[%clk 0:02:55]} 5. O-O {[%clk 0:02:11]}  Nc6 {[%clk 0:02:55]} 6. c3 {[%clk 0:02:10]}  Nf6 {[%clk 0:02:55]} 7. Re1 {[%clk 0:02:11]}  e6 {[%clk 0:02:54]} 8. d4 {[%clk 0:02:11]}  cxd4 {[%clk 0:02:55]} 9. cxd4 {[%clk 0:02:11]}  d5 {[%clk 0:02:56]} 10. e5 {[%clk 0:02:12]}  Ne4 {[%clk 0:02:56]} 11. Nbd2 {[%clk 0:02:12]}  Nxd2 {[%clk 0:02:57]} 12. Bxd2 {[%clk 0:02:12]}  Be7 {[%clk 0:02:57]} 13. Rc1 {[%clk 0:02:11]}  h6 {[%clk 0:02:54]} 14. a3 {[%clk 0:02:11]}  O-O {[%clk 0:02:54]} 15. h4 {[%clk 0:02:11]}  Rfc8 {[%clk 0:02:54]} 16. Qe2 {[%clk 0:02:10]}  Qd8 {[%clk 0:02:54]} 17. Qb5 {[%clk 0:02:06]}  Qb6 {[%clk 0:02:53]} 18. Qxb6 {[%clk 0:02:06]}  axb6 {[%clk 0:02:54]} 19. Rc2 {[%clk 0:01:57]}  Na5 {[%clk 0:02:54]} 20. Rec1 {[%clk 0:01:50]}  Rxc2 {[%clk 0:02:36]} 21. Rxc2 {[%clk 0:01:49]}  Nc4 {[%clk 0:02:21]} 22. Bc1 {[%clk 0:01:44]}  b5 {[%clk 0:02:13]} 23. Ne1 {[%clk 0:01:39]}  Rc8 {[%clk 0:02:01]} 24. Nd3 {[%clk 0:01:34]}  Nb6 {[%clk 0:01:56]} 25. Rxc8+ {[%clk 0:01:14]}  Nxc8 {[%clk 0:01:55]} 26. b3 {[%clk 0:01:10]}  Bxh4 {[%clk 0:01:54]} 27. Nc5 {[%clk 0:01:07]}  b6 {[%clk 0:01:50]} 28. Na6 {[%clk 0:01:01]}  Be7 {[%clk 0:01:47]} 29. Nc7 {[%clk 0:00:55]}  b4 {[%clk 0:01:45]} 30. a4 {[%clk 0:00:55]}  Na7 {[%clk 0:01:40]} 31. Bd2 {[%clk 0:00:54]}  Nc6 {[%clk 0:01:40]} 32. Be3 {[%clk 0:00:27]}  Na5 {[%clk 0:01:40]} 33. Na8 {[%clk 0:00:25]}  Bd8 {[%clk 0:01:38]} 34. Bd2 {[%clk 0:00:24]}  Nc6 {[%clk 0:01:33]} 35. Be3 {[%clk 0:00:03]}  Kf8 {[%clk 0:01:32]} 0-1


[Site "https://www.chess.com"]